[Event "Saint Louis Masters"]
[Date "2024.12.04"]
[White "Saric, Ivan"]
[Black "Theodorou, Nikolas"]
[WhiteElo "2669"]
[BlackElo "2600"]
[Round "4.3"]
[Result "1/2-1/2"]
[TimeControl "5400+30"]

1. e4 {[%clk 01:30:57] [%emt 00:00:02]} c5 {[%clk 01:30:40] [%emt 00:00:21]} 2.
Nf3 {[%clk 01:31:22] [%emt 00:00:05]} Nc6 {[%clk 01:31:05] [%emt 00:00:05]} 3.
Bb5 {[%clk 01:31:25] [%emt 00:00:26]} e5 {[%clk 01:31:09] [%emt 00:00:27]} 4.
O-O {[%clk 01:31:27] [%emt 00:00:27]} Nge7 {[%clk 01:31:37] [%emt 00:00:04]} 5.
Bc4 {[%clk 01:25:40] [%emt 00:06:16]} Ng6 {[%clk 01:32:01] [%emt 00:00:06]} 6.
c3 {[%clk 01:19:47] [%emt 00:06:23]} Be7 {[%clk 01:32:25] [%emt 00:00:06]} 7. d4
{[%clk 01:19:01] [%emt 00:01:16]} exd4 {[%clk 01:32:49] [%emt 00:00:05]} 8. cxd4
{[%clk 01:19:26] [%emt 00:00:06]} d6 {[%clk 01:33:17] [%emt 00:00:03]} 9. dxc5
{[%clk 01:15:31] [%emt 00:04:24]} dxc5 {[%clk 01:33:31] [%emt 00:00:16]} 10.
Qxd8+ {[%clk 01:15:57] [%emt 00:00:04]} Bxd8 {[%clk 01:33:14] [%emt 00:00:46]}
11. Be3 {[%clk 01:15:55] [%emt 00:00:33]} b6 {[%clk 01:33:29] [%emt 00:00:15]}
12. Nc3 {[%clk 01:15:40] [%emt 00:00:45]} O-O {[%clk 01:33:47] [%emt 00:00:11]}
13. h3 {[%clk 01:12:30] [%emt 00:03:41]} Bf6 {[%clk 01:29:48] [%emt 00:04:29]}
14. Rad1 {[%clk 01:09:14] [%emt 00:03:46]} Bb7 {[%clk 01:29:54] [%emt 00:00:24]}
15. Bd5 {[%clk 00:51:42] [%emt 00:18:02]} h6 {[%clk 01:21:31] [%emt 00:08:53]}
16. Rd2 {[%clk 00:39:07] [%emt 00:13:05]} Bxc3 {[%clk 01:18:39] [%emt 00:03:23]}
17. bxc3 {[%clk 00:39:34] [%emt 00:00:03]} Rfe8 {[%clk 01:18:59] [%emt
00:00:10]} 18. Bxc5 {[%clk 00:33:51] [%emt 00:06:13]} bxc5 {[%clk 01:17:53]
[%emt 00:01:35]} 19. Rb1 {[%clk 00:32:01] [%emt 00:02:20]} Re7 {[%clk 01:00:19]
[%emt 00:18:04]} 20. Rdb2 {[%clk 00:32:07] [%emt 00:00:23]} Na5 {[%clk 01:00:44]
[%emt 00:00:06]} 21. Bxb7 {[%clk 00:32:33] [%emt 00:00:04]} Nxb7 {[%clk
01:01:11] [%emt 00:00:03]} 22. Rxb7 {[%clk 00:32:58] [%emt 00:00:05]} Rxe4
{[%clk 01:01:38] [%emt 00:00:02]} 23. Rc7 {[%clk 00:32:22] [%emt 00:01:07]} Rc4
{[%clk 01:02:06] [%emt 00:00:02]} 24. Rbb7 {[%clk 00:31:24] [%emt 00:01:28]} Rf8
{[%clk 01:02:33] [%emt 00:00:02]} 25. Rxa7 {[%clk 00:25:18] [%emt 00:06:36]}
Rxc3 {[%clk 01:02:34] [%emt 00:00:29]} 26. Kh2 {[%clk 00:24:52] [%emt 00:00:55]}
Rc2 {[%clk 00:55:37] [%emt 00:07:28]} 27. Kg3 {[%clk 00:25:18] [%emt 00:00:05]}
h5 {[%clk 00:56:00] [%emt 00:00:07]} 28. a4 {[%clk 00:18:00] [%emt 00:07:48]}
h4+ {[%clk 00:49:00] [%emt 00:07:30]} 29. Nxh4 {[%clk 00:18:23] [%emt 00:00:07]}
Nxh4 {[%clk 00:49:28] [%emt 00:00:03]} 30. Kxh4 {[%clk 00:18:46] [%emt
00:00:06]} Rxf2 {[%clk 00:49:54] [%emt 00:00:04]} 31. Kg3 {[%clk 00:19:02] [%emt
00:00:14]} Ra2 {[%clk 00:42:26] [%emt 00:07:58]} 32. h4 {[%clk 00:13:57] [%emt
00:05:33]} g6 {[%clk 00:39:34] [%emt 00:03:22]} 33. Kh3 {[%clk 00:12:39] [%emt
00:01:48]} Kg7 {[%clk 00:37:50] [%emt 00:02:14]} 34. Rxc5 {[%clk 00:09:40] [%emt
00:03:29]} Rd8 {[%clk 00:36:49] [%emt 00:01:31]} 35. Rc3 {[%clk 00:09:51] [%emt
00:00:20]} Rf2 {[%clk 00:34:51] [%emt 00:02:28]} 36. a5 {[%clk 00:07:42] [%emt
00:02:39]} Rdd2 {[%clk 00:32:46] [%emt 00:02:34]} 37. Rf3 {[%clk 00:07:28] [%emt
00:00:44]} Rxf3+ {[%clk 00:33:06] [%emt 00:00:10]} 38. gxf3 {[%clk 00:07:55]
[%emt 00:00:03]} Ra2 {[%clk 00:33:25] [%emt 00:00:11]} 39. a6 {[%clk 00:07:57]
[%emt 00:00:29]} Ra4 {[%clk 00:32:24] [%emt 00:01:30]} 40. Kg3 {[%clk 00:08:22]
[%emt 00:00:05]} Kf6 {[%clk 00:31:53] [%emt 00:01:01]} 41. Kf2 {[%clk 00:07:48]
[%emt 00:01:04]} Rxh4 {[%clk 00:27:16] [%emt 00:05:07]} 42. Rb7 {[%clk 00:08:15]
[%emt 00:00:03]} Ra4 {[%clk 00:27:35] [%emt 00:00:11]} 43. a7 {[%clk 00:08:42]
[%emt 00:00:03]} g5 {[%clk 00:26:48] [%emt 00:01:16]} 44. Ke3 {[%clk 00:09:08]
[%emt 00:00:04]} Kg6 {[%clk 00:23:34] [%emt 00:03:44]} 45. Kd3 {[%clk 00:09:26]
[%emt 00:00:13]} f6 {[%clk 00:20:15] [%emt 00:03:49]} 46. Kc3 {[%clk 00:08:59]
[%emt 00:00:56]} Kf5 {[%clk 00:19:02] [%emt 00:01:43]} 47. Kb3 {[%clk 00:09:24]
[%emt 00:00:05]} Ra1 {[%clk 00:18:14] [%emt 00:01:17]} 48. Kc4 {[%clk 00:08:37]
[%emt 00:01:18]} Kf4 {[%clk 00:17:17] [%emt 00:01:26]} 49. Rf7 {[%clk 00:08:55]
[%emt 00:00:12]} Kxf3 {[%clk 00:16:50] [%emt 00:00:57]} 50. Rxf6+ {[%clk
00:09:03] [%emt 00:00:22]} Kg2 {[%clk 00:16:47] [%emt 00:00:33]} 51. Rg6 {[%clk
00:08:58] [%emt 00:00:35]} 1/2-1/2

[Site "Europe Echecs"]

[Event "Saint Louis Masters"]
[Date "2024.12.04"]
[White "Nyzhnyk, Illya"]
[Black "Robson, Ray"]
[WhiteElo "2564"]
[BlackElo "2700"]
[Round "4.4"]
[Result "1/2-1/2"]
[TimeControl "5400+30"]

1. c4 {[%clk 01:30:49] [%emt 00:00:10]} e5 {[%clk 01:29:37] [%emt 00:01:22]} 2.
Nc3 {[%clk 01:31:14] [%emt 00:00:07]} Nf6 {[%clk 01:26:15] [%emt 00:03:52]} 3.
Nf3 {[%clk 01:31:39] [%emt 00:00:04]} Nc6 {[%clk 01:26:23] [%emt 00:00:22]} 4.
d4 {[%clk 01:32:05] [%emt 00:00:04]} exd4 {[%clk 01:25:11] [%emt 00:01:43]} 5.
Nxd4 {[%clk 01:32:31] [%emt 00:00:04]} Bb4 {[%clk 01:24:37] [%emt 00:01:03]} 6.
Nxc6 {[%clk 01:32:56] [%emt 00:00:05]} dxc6 {[%clk 01:15:06] [%emt 00:10:01]} 7.
Qxd8+ {[%clk 01:32:06] [%emt 00:01:21]} Kxd8 {[%clk 01:15:32] [%emt 00:00:03]}
8. f3 {[%clk 01:32:20] [%emt 00:00:17]} Be6 {[%clk 01:14:18] [%emt 00:01:43]} 9.
e4 {[%clk 01:32:35] [%emt 00:00:15]} Bxc3+ {[%clk 01:08:16] [%emt 00:06:32]} 10.
bxc3 {[%clk 01:31:04] [%emt 00:02:00]} Nd7 {[%clk 01:08:05] [%emt 00:00:42]} 11.
Be3 {[%clk 01:31:30] [%emt 00:00:05]} Nb6 {[%clk 01:01:31] [%emt 00:07:03]} 12.
c5 {[%clk 01:28:25] [%emt 00:03:35]} Na4 {[%clk 00:58:38] [%emt 00:03:24]} 13.
O-O-O+ {[%clk 01:18:57] [%emt 00:09:57]} Ke7 {[%clk 00:56:18] [%emt 00:02:50]}
14. Kc2 {[%clk 01:17:53] [%emt 00:01:33]} b6 {[%clk 00:51:26] [%emt 00:05:23]}
15. f4 {[%clk 00:58:33] [%emt 00:19:50]} f6 {[%clk 00:49:43] [%emt 00:02:14]}
16. f5 {[%clk 00:55:14] [%emt 00:03:48]} Bf7 {[%clk 00:49:25] [%emt 00:00:49]}
17. e5 {[%clk 00:49:31] [%emt 00:06:13]} fxe5 {[%clk 00:46:02] [%emt 00:03:53]}
18. Bg5+ {[%clk 00:49:33] [%emt 00:00:28]} Ke8 {[%clk 00:46:09] [%emt 00:00:23]}
19. Bd3 {[%clk 00:45:22] [%emt 00:04:41]} h6 {[%clk 00:32:03] [%emt 00:14:36]}
20. Bh4 {[%clk 00:45:41] [%emt 00:00:10]} Nxc5 {[%clk 00:31:27] [%emt 00:01:06]}
21. Rhe1 {[%clk 00:45:52] [%emt 00:00:18]} Nxd3 {[%clk 00:30:45] [%emt
00:01:13]} 22. Rxd3 {[%clk 00:46:17] [%emt 00:00:05]} g5 {[%clk 00:30:34] [%emt
00:00:39]} 23. Bg3 {[%clk 00:46:08] [%emt 00:00:40]} Rh7 {[%clk 00:29:40] [%emt
00:01:24]} 24. Bxe5 {[%clk 00:44:43] [%emt 00:01:55]} 1/2-1/2

[Site "Europe Echecs"]

[Event "Saint Louis Masters"]
[Date "2024.12.04"]
[White "Kantor, Gergely"]
[Black "Oparin, Grigoriy"]
[WhiteElo "2550"]
[BlackElo "2653"]
[Round "4.5"]
[Result "1/2-1/2"]
[TimeControl "5400+30"]

1. d4 {[%clk 01:29:20] [%emt 00:01:39]} Nf6 {[%clk 01:30:54] [%emt 00:00:06]} 2.
c4 {[%clk 01:29:41] [%emt 00:00:09]} e6 {[%clk 01:31:20] [%emt 00:00:05]} 3. Nf3
{[%clk 01:29:55] [%emt 00:00:16]} b6 {[%clk 01:31:45] [%emt 00:00:04]} 4. g3
{[%clk 01:28:52] [%emt 00:01:33]} Bb7 {[%clk 01:31:58] [%emt 00:00:17]} 5. Bg2
{[%clk 01:29:10] [%emt 00:00:12]} Bb4+ {[%clk 01:32:22] [%emt 00:00:06]} 6. Bd2
{[%clk 01:27:25] [%emt 00:02:15]} c5 {[%clk 01:32:30] [%emt 00:00:22]} 7. d5
{[%clk 01:26:35] [%emt 00:01:21]} exd5 {[%clk 01:32:40] [%emt 00:00:19]} 8. Bxb4
{[%clk 01:21:50] [%emt 00:05:15]} cxb4 {[%clk 01:32:58] [%emt 00:00:12]} 9. Nh4
{[%clk 01:22:15] [%emt 00:00:05]} Qc7 {[%clk 01:30:56] [%emt 00:02:32]} 10. cxd5
{[%clk 01:14:01] [%emt 00:08:44]} O-O {[%clk 01:30:27] [%emt 00:00:59]} 11. Qd2
{[%clk 01:02:38] [%emt 00:11:53]} Re8 {[%clk 01:16:11] [%emt 00:14:46]} 12. O-O
{[%clk 00:59:45] [%emt 00:03:24]} Qe5 {[%clk 01:15:41] [%emt 00:00:59]} 13. Qxb4
{[%clk 00:56:43] [%emt 00:03:32]} Na6 {[%clk 00:57:09] [%emt 00:19:02]} 1/2-1/2

[Site "Europe Echecs"]

[Event "Saint Louis Masters"]
[Date "2024.12.04"]
[White "Moradiabadi, Elshan"]
[Black "Donchenko, Alexander"]
[WhiteElo "2512"]
[BlackElo "2618"]
[Round "4.6"]
[Result "1/2-1/2"]
[TimeControl "5400+30"]

1. d4 {[%clk 01:29:50] [%emt 00:01:09]} Nf6 {[%clk 01:30:36] [%emt 00:00:25]} 2.
c4 {[%clk 01:30:17] [%emt 00:00:03]} e6 {[%clk 01:29:22] [%emt 00:01:44]} 3. Nf3
{[%clk 01:30:40] [%emt 00:00:05]} d5 {[%clk 01:29:31] [%emt 00:00:22]} 4. g3
{[%clk 01:31:04] [%emt 00:00:06]} Bb4+ {[%clk 01:25:30] [%emt 00:04:31]} 5. Bd2
{[%clk 01:31:28] [%emt 00:00:06]} a5 {[%clk 01:25:10] [%emt 00:00:51]} 6. Qc1
{[%clk 01:30:30] [%emt 00:01:28]} O-O {[%clk 01:24:36] [%emt 00:01:04]} 7. Bg2
{[%clk 01:30:55] [%emt 00:00:03]} Be7 {[%clk 01:23:30] [%emt 00:01:37]} 8. O-O
{[%clk 01:28:16] [%emt 00:03:09]} c6 {[%clk 01:23:09] [%emt 00:00:51]} 9. Rd1
{[%clk 01:18:07] [%emt 00:10:39]} b6 {[%clk 01:18:21] [%emt 00:05:19]} 10. Bf4
{[%clk 01:18:13] [%emt 00:00:24]} Ba6 {[%clk 01:12:42] [%emt 00:06:09]} 11. Nbd2
{[%clk 01:12:36] [%emt 00:06:06]} Nbd7 {[%clk 01:11:01] [%emt 00:02:11]} 12. e4
{[%clk 01:05:57] [%emt 00:07:09]} Rc8 {[%clk 01:05:41] [%emt 00:05:48]} 13. e5
{[%clk 01:05:36] [%emt 00:00:53]} Ne8 {[%clk 01:05:43] [%emt 00:00:28]} 14. b3
{[%clk 01:02:46] [%emt 00:03:20]} Nc7 {[%clk 01:03:44] [%emt 00:02:30]} 15. Qb2
{[%clk 01:01:45] [%emt 00:01:31]} c5 {[%clk 01:01:18] [%emt 00:02:56]} 16. Rac1
{[%clk 01:00:54] [%emt 00:01:20]} h6 {[%clk 00:54:06] [%emt 00:07:42]} 17. Nb1
{[%clk 00:45:58] [%emt 00:15:27]} b5 {[%clk 00:51:03] [%emt 00:03:33]} 18. dxc5
{[%clk 00:32:14] [%emt 00:14:15]} Bxc5 {[%clk 00:49:30] [%emt 00:02:02]} 19.
cxd5 {[%clk 00:27:57] [%emt 00:04:47]} Nxd5 {[%clk 00:49:32] [%emt 00:00:27]}
20. Nc3 {[%clk 00:28:24] [%emt 00:00:04]} Nxf4 {[%clk 00:47:21] [%emt 00:02:41]}
21. gxf4 {[%clk 00:28:52] [%emt 00:00:01]} Qe7 {[%clk 00:47:35] [%emt 00:00:15]}
22. Qe2 {[%clk 00:26:19] [%emt 00:03:04]} Nb6 {[%clk 00:42:00] [%emt 00:06:05]}
23. Nd4 {[%clk 00:18:03] [%emt 00:08:46]} Qh4 {[%clk 00:34:36] [%emt 00:07:54]}
24. Nc6 {[%clk 00:06:14] [%emt 00:12:18]} b4 {[%clk 00:19:57] [%emt 00:15:09]}
25. Qxa6 {[%clk 00:06:39] [%emt 00:00:04]} Bxf2+ {[%clk 00:18:59] [%emt
00:01:28]} 26. Kf1 {[%clk 00:06:50] [%emt 00:00:19]} Be3 {[%clk 00:16:47] [%emt
00:02:42]} 27. Ne4 {[%clk 00:07:19]} Nd5 {[%clk 00:06:40] [%emt 00:10:38]} 28.
Rc2 {[%clk 00:07:08] [%emt 00:00:41]} Qxh2 {[%clk 00:06:01] [%emt 00:01:09]} 29.
Rxd5 {[%clk 00:07:13] [%emt 00:00:25]} Qg1+ {[%clk 00:01:32] [%emt 00:04:58]}
30. Ke2 {[%clk 00:07:42]} Rxc6 {[%clk 00:00:59] [%emt 00:01:03]} 31. Qxc6 {[%clk
00:06:55] [%emt 00:01:17]} exd5 {[%clk 00:01:29] [%emt 00:00:02]} 32. Nd6 {[%clk
00:06:34] [%emt 00:00:50]} Ba7 {[%clk 00:01:04] [%emt 00:00:54]} 33. Qxd5 {[%clk
00:05:59] [%emt 00:01:05]} Qe3+ {[%clk 00:00:59] [%emt 00:00:35]} 34. Kd1 {[%clk
00:06:07] [%emt 00:00:23]} 1/2-1/2

[Site "Europe Echecs"]

[Event "Saint Louis Masters"]
[Date "2024.12.04"]
[White "Quesada Perez, Yasser"]
[Black "Kevlishvili, Robby"]
[WhiteElo "2577"]
[BlackElo "2556"]
[Round "4.7"]
[Result "1/2-1/2"]
[TimeControl "5400+30"]

1. e4 {[%clk 01:27:14] [%emt 00:03:45]} e5 {[%clk 01:30:54] [%emt 00:00:06]} 2.
Nf3 {[%clk 01:27:32] [%emt 00:00:12]} Nc6 {[%clk 01:31:18] [%emt 00:00:06]} 3.
Bc4 {[%clk 01:27:51] [%emt 00:00:11]} Bc5 {[%clk 01:31:26] [%emt 00:00:21]} 4.
c3 {[%clk 01:28:09] [%emt 00:00:14]} Nf6 {[%clk 01:31:52] [%emt 00:00:04]} 5. d3
{[%clk 01:28:33] [%emt 00:00:05]} d6 {[%clk 01:32:10] [%emt 00:00:12]} 6. h3
{[%clk 01:28:43]} O-O {[%clk 01:32:30] [%emt 00:00:29]} 7. O-O {[%clk 01:28:38]
[%emt 00:00:37]} Bb6 {[%clk 01:32:50] [%emt 00:00:10]} 8. Re1 {[%clk 01:26:10]
[%emt 00:02:57]} Ne7 {[%clk 01:33:15] [%emt 00:00:06]} 9. Nbd2 {[%clk 01:23:50]
[%emt 00:02:50]} Ng6 {[%clk 01:33:37] [%emt 00:00:07]} 10. Bb3 {[%clk 01:23:55]
[%emt 00:00:27]} c6 {[%clk 01:33:59] [%emt 00:00:08]} 11. Nf1 {[%clk 01:23:32]
[%emt 00:00:53]} h6 {[%clk 01:33:14] [%emt 00:01:14]} 12. Ng3 {[%clk 01:23:02]
[%emt 00:01:00]} d5 {[%clk 01:33:28] [%emt 00:00:17]} 13. exd5 {[%clk 01:23:19]
[%emt 00:00:13]} Nxd5 {[%clk 01:33:53] [%emt 00:00:04]} 14. d4 {[%clk 01:23:44]
[%emt 00:00:05]} exd4 {[%clk 01:34:19] [%emt 00:00:04]} 15. Nxd4 {[%clk
01:24:10] [%emt 00:00:04]} a5 {[%clk 01:34:32] [%emt 00:00:17]} 16. Ndf5 {[%clk
01:03:07] [%emt 00:21:33]} Be6 {[%clk 01:26:08] [%emt 00:08:54]} 17. Qf3 {[%clk
01:01:41] [%emt 00:01:56]} a4 {[%clk 01:17:45] [%emt 00:08:53]} 18. Bc2 {[%clk
01:01:19] [%emt 00:00:52]} Ra5 {[%clk 01:17:48] [%emt 00:00:27]} 19. Nxg7 {[%clk
00:46:49] [%emt 00:15:00]} Kxg7 {[%clk 01:14:38] [%emt 00:03:40]} 20. Nh5+
{[%clk 00:39:48] [%emt 00:07:32]} Kh8 {[%clk 01:05:44] [%emt 00:09:23]} 21. Bxh6
{[%clk 00:38:11] [%emt 00:02:07]} Rg8 {[%clk 00:58:54] [%emt 00:07:20]} 22. Rxe6
{[%clk 00:33:52] [%emt 00:04:50]} fxe6 {[%clk 00:59:18] [%emt 00:00:06]} 23. Qf7
{[%clk 00:34:17] [%emt 00:00:05]} Bxf2+ {[%clk 00:57:05] [%emt 00:02:43]} 24.
Kh1 {[%clk 00:26:02] [%emt 00:08:45]} Qe7 {[%clk 00:55:15] [%emt 00:02:20]} 25.
Bxg6 {[%clk 00:26:13] [%emt 00:00:19]} Qxf7 {[%clk 00:48:34] [%emt 00:07:12]}
26. Bxf7 {[%clk 00:26:42] [%emt 00:00:01]} Rga8 {[%clk 00:45:34] [%emt
00:03:30]} 27. Rf1 {[%clk 00:25:45] [%emt 00:01:26]} Be3 {[%clk 00:44:17] [%emt
00:01:46]} 28. Bg7+ {[%clk 00:25:54] [%emt 00:00:22]} Kh7 {[%clk 00:44:42] [%emt
00:00:05]} 29. Be5 {[%clk 00:23:20] [%emt 00:03:04]} Rf8 {[%clk 00:29:55] [%emt
00:15:15]} 30. Bg7 {[%clk 00:09:23] [%emt 00:14:27]} Rxf7 {[%clk 00:24:58] [%emt
00:05:27]} 31. Rxf7 {[%clk 00:09:52]} Kg6 {[%clk 00:25:22] [%emt 00:00:06]} 32.
Rf3 {[%clk 00:10:20] [%emt 00:00:03]} Kxh5 {[%clk 00:22:52] [%emt 00:03:00]} 33.
c4 {[%clk 00:10:46] [%emt 00:00:04]} Bg5 {[%clk 00:23:08] [%emt 00:00:14]} 34.
cxd5 {[%clk 00:11:11] [%emt 00:00:05]} Rxd5 {[%clk 00:23:35] [%emt 00:00:02]}
35. Bf6 {[%clk 00:09:06] [%emt 00:02:35]} Rd2 {[%clk 00:20:03] [%emt 00:04:02]}
36. Bc3 {[%clk 00:08:09] [%emt 00:01:27]} Rc2 {[%clk 00:20:29] [%emt 00:00:04]}
37. a3 {[%clk 00:07:41] [%emt 00:00:59]} Bc1 {[%clk 00:20:09] [%emt 00:00:50]}
38. g4+ {[%clk 00:07:36] [%emt 00:00:34]} Kg6 {[%clk 00:16:40] [%emt 00:03:59]}
39. h4 {[%clk 00:07:55] [%emt 00:00:12]} Bxb2 {[%clk 00:17:03] [%emt 00:00:07]}
40. Rf6+ {[%clk 00:08:08] [%emt 00:00:17]} Kg7 {[%clk 00:17:25] [%emt 00:00:07]}
41. Bxb2 {[%clk 00:08:32] [%emt 00:00:07]} Rxb2 {[%clk 00:17:51] [%emt
00:00:04]} 42. g5 {[%clk 00:07:30] [%emt 00:01:31]} Re2 {[%clk 00:11:42] [%emt
00:06:39]} 43. h5 {[%clk 00:07:30] [%emt 00:00:30]} Re5 {[%clk 00:10:53] [%emt
00:01:19]} 44. h6+ {[%clk 00:07:40] [%emt 00:00:20]} Kh8 {[%clk 00:09:17] [%emt
00:02:05]} 45. Rf8+ {[%clk 00:06:36] [%emt 00:01:35]} Kh7 {[%clk 00:09:44] [%emt
00:00:03]} 46. Rf7+ {[%clk 00:06:59] [%emt 00:00:07]} Kh8 {[%clk 00:10:11] [%emt
00:00:02]} 47. Rg7 {[%clk 00:06:50] [%emt 00:00:40]} c5 {[%clk 00:09:02] [%emt
00:01:39]} 48. Kg2 {[%clk 00:05:09] [%emt 00:02:11]} c4 {[%clk 00:09:17] [%emt
00:00:15]} 49. g6 {[%clk 00:03:29] [%emt 00:02:10]} Rh5 {[%clk 00:07:14] [%emt
00:02:33]} 50. Rh7+ {[%clk 00:03:35] [%emt 00:00:24]} Kg8 {[%clk 00:07:40] [%emt
00:00:04]} 51. Rg7+ {[%clk 00:01:45] [%emt 00:02:20]} Kh8 {[%clk 00:08:06] [%emt
00:00:04]} 52. Rh7+ {[%clk 00:01:58] [%emt 00:00:18]} Kg8 {[%clk 00:08:32] [%emt
00:00:03]} 53. Rg7+ {[%clk 00:00:38] [%emt 00:01:51]} 1/2-1/2

[Site "Europe Echecs"]

[Event "Saint Louis Masters"]
[Date "2024.12.04"]
[White "Zhou, Jianchao"]
[Black "Woodward, Andy"]
[WhiteElo "2572"]
[BlackElo "2530"]
[Round "4.8"]
[Result "1-0"]
[TimeControl "5400+30"]

1. c4 {[%clk 01:25:37] [%emt 00:05:22]} Nf6 {[%clk 01:30:33] [%emt 00:00:26]} 2.
Nc3 {[%clk 01:25:59] [%emt 00:00:10]} d5 {[%clk 01:29:11] [%emt 00:01:51]} 3.
cxd5 {[%clk 01:26:25] [%emt 00:00:03]} Nxd5 {[%clk 01:29:30] [%emt 00:00:11]} 4.
g3 {[%clk 01:26:46] [%emt 00:00:10]} e5 {[%clk 01:13:17] [%emt 00:16:43]} 5. Bg2
{[%clk 01:27:03] [%emt 00:00:14]} Nb6 {[%clk 01:13:37] [%emt 00:00:10]} 6. Nf3
{[%clk 01:27:27] [%emt 00:00:05]} Nc6 {[%clk 01:14:00] [%emt 00:00:07]} 7. O-O
{[%clk 01:27:47] [%emt 00:00:09]} Be7 {[%clk 01:14:23] [%emt 00:00:08]} 8. d3
{[%clk 01:28:11] [%emt 00:00:06]} O-O {[%clk 01:14:41] [%emt 00:00:11]} 9. Be3
{[%clk 01:28:35] [%emt 00:00:06]} Re8 {[%clk 01:14:32] [%emt 00:00:40]} 10. a4
{[%clk 01:23:38] [%emt 00:05:27]} Bb4 {[%clk 01:01:12] [%emt 00:13:50]} 11. d4
{[%clk 01:16:55] [%emt 00:07:13]} e4 {[%clk 00:48:37] [%emt 00:13:04]} 12. Ne5
{[%clk 01:09:42] [%emt 00:07:44]} Bxc3 {[%clk 00:37:39] [%emt 00:11:28]} 13.
bxc3 {[%clk 01:09:55] [%emt 00:00:17]} Bf5 {[%clk 00:36:18] [%emt 00:01:50]} 14.
a5 {[%clk 01:09:05] [%emt 00:01:20]} Nd5 {[%clk 00:31:26] [%emt 00:05:21]} 15.
Nxc6 {[%clk 01:07:32] [%emt 00:02:03]} bxc6 {[%clk 00:31:48] [%emt 00:00:08]}
16. Qd2 {[%clk 01:07:17] [%emt 00:00:46]} Qd7 {[%clk 00:28:13] [%emt 00:04:04]}
17. c4 {[%clk 01:06:44] [%emt 00:01:05]} Ne7 {[%clk 00:26:48] [%emt 00:01:54]}
18. Rfb1 {[%clk 01:06:33] [%emt 00:00:40]} Nc8 {[%clk 00:23:43] [%emt 00:03:35]}
19. Qb4 {[%clk 01:05:04] [%emt 00:01:59]} Nd6 {[%clk 00:20:58] [%emt 00:03:15]}
20. Qc5 {[%clk 01:04:38] [%emt 00:00:56]} a6 {[%clk 00:19:59] [%emt 00:01:30]}
21. Rb4 {[%clk 01:03:59] [%emt 00:01:09]} Bg4 {[%clk 00:19:09] [%emt 00:01:19]}
22. d5 {[%clk 00:59:16] [%emt 00:05:14]} Bxe2 {[%clk 00:16:26] [%emt 00:03:12]}
23. dxc6 {[%clk 00:56:05] [%emt 00:03:41]} Qe6 {[%clk 00:16:34] [%emt 00:00:22]}
24. Bf4 {[%clk 00:53:31] [%emt 00:03:04]} Nxc4 {[%clk 00:12:26] [%emt 00:04:38]}
25. Rc1 {[%clk 00:46:09] [%emt 00:07:53]} Rad8 {[%clk 00:10:08] [%emt 00:02:48]}
26. Rbxc4 {[%clk 00:42:40] [%emt 00:03:59]} Rd5 {[%clk 00:10:28] [%emt
00:00:09]} 27. Qb4 {[%clk 00:42:10] [%emt 00:01:00]} Bxc4 {[%clk 00:07:30] [%emt
00:03:27]} 28. Qxc4 {[%clk 00:42:17] [%emt 00:00:23]} Rd1+ {[%clk 00:05:49]
[%emt 00:02:11]} 29. Bf1 {[%clk 00:41:51] [%emt 00:00:56]} Rxc1 {[%clk 00:05:17]
[%emt 00:01:02]} 30. Bxc1 {[%clk 00:40:21] [%emt 00:02:00]} Qxc4 {[%clk
00:05:19] [%emt 00:00:28]} 31. Bxc4 {[%clk 00:39:37] [%emt 00:01:14]} Re5 {[%clk
00:05:40] [%emt 00:00:09]} 32. Bd2 {[%clk 00:39:54] [%emt 00:00:13]} Rc5 {[%clk
00:05:46] [%emt 00:00:24]} 33. Bxa6 {[%clk 00:40:16] [%emt 00:00:08]} e3 {[%clk
00:05:31] [%emt 00:00:44]} 34. fxe3 {[%clk 00:39:14] [%emt 00:01:33]} Rxc6
{[%clk 00:05:54] [%emt 00:00:07]} 35. Bb7 {[%clk 00:38:24] [%emt 00:01:19]} Rc2
{[%clk 00:06:18] [%emt 00:00:06]} 36. a6 {[%clk 00:38:14] [%emt 00:00:40]} Rxd2
{[%clk 00:06:40] [%emt 00:00:08]} 37. a7 {[%clk 00:38:41] [%emt 00:00:03]} Rd1+
{[%clk 00:07:05] [%emt 00:00:06]} 38. Kf2 {[%clk 00:39:06] [%emt 00:00:04]} Ra1
{[%clk 00:07:26] [%emt 00:00:09]} 39. a8=Q+ {[%clk 00:39:32] [%emt 00:00:05]}
Rxa8 {[%clk 00:07:50] [%emt 00:00:06]} 40. Bxa8 {[%clk 00:39:48] [%emt
00:00:14]} 1-0

[Site "Europe Echecs"]